[Event "Titled Tuesday Blitz May 16 Late 2023"]
[White "Gatterer, Florian"]
[Black "Adla, Diego"]
[WhiteFideId "811688"]
[BlackFideId "100072"]
[WhiteElo "2221"]
[BlackElo "2377"]
[Result "1/2-1/2"]
[Round "03"]
[TimeControl "180+2"]
[Date "2023.05.16"]
[WhiteClock "0:00:20"]
[BlackClock "0:01:55"]

1. Nf3 {[%clk 0:03:00]}  d5 {[%clk 0:02:58]} 2. g3 {[%clk 0:03:01]}  Nd7 {[%clk 0:02:58]} 3. d4 {[%clk 0:03:00]}  Nb6 {[%clk 0:02:58]} 4. Bg2 {[%clk 0:02:59]}  Bf5 {[%clk 0:02:58]} 5. a4 {[%clk 0:02:55]}  a5 {[%clk 0:02:55]} 6. Nbd2 {[%clk 0:02:51]}  h6 {[%clk 0:02:51]} 7. O-O {[%clk 0:02:47]}  e6 {[%clk 0:02:46]} 8. Ne5 {[%clk 0:02:45]}  Nf6 {[%clk 0:02:41]} 9. Re1 {[%clk 0:02:43]}  Be7 {[%clk 0:02:40]} 10. c3 {[%clk 0:02:42]}  O-O {[%clk 0:02:34]} 11. e4 {[%clk 0:02:42]}  Bh7 {[%clk 0:02:24]} 12. exd5 {[%clk 0:02:36]}  exd5 {[%clk 0:02:21]} 13. Ng4 {[%clk 0:02:26]}  Bd6 {[%clk 0:02:16]} 14. Nxf6+ {[%clk 0:02:17]}  Qxf6 {[%clk 0:02:13]} 15. Nb3 {[%clk 0:02:09]}  c6 {[%clk 0:02:11]} 16. Nc5 {[%clk 0:02:02]}  Bxc5 {[%clk 0:02:08]} 17. dxc5 {[%clk 0:02:03]}  Nd7 {[%clk 0:02:09]} 18. Be3 {[%clk 0:02:02]}  Rfe8 {[%clk 0:02:07]} 19. Bd4 {[%clk 0:01:55]}  Qf5 {[%clk 0:02:03]} 20. Qd2 {[%clk 0:01:43]}  Ne5 {[%clk 0:02:02]} 21. Bxe5 {[%clk 0:01:34]}  Rxe5 {[%clk 0:02:03]} 22. Rxe5 {[%clk 0:01:34]}  Qxe5 {[%clk 0:02:04]} 23. Re1 {[%clk 0:01:33]}  Qf6 {[%clk 0:02:02]} 24. Bf1 {[%clk 0:01:04]}  Kf8 {[%clk 0:02:01]} 25. Bd3 {[%clk 0:01:04]}  Bxd3 {[%clk 0:02:00]} 26. Qxd3 {[%clk 0:01:04]}  Re8 {[%clk 0:01:59]} 27. Rxe8+ {[%clk 0:01:02]}  Kxe8 {[%clk 0:01:59]} 28. Qh7 {[%clk 0:00:43]}  Ke7 {[%clk 0:01:57]} 29. Qg8 {[%clk 0:00:37]}  Qg5 {[%clk 0:01:54]} 30. Qb8 {[%clk 0:00:32]}  Qc1+ {[%clk 0:01:54]} 31. Kg2 {[%clk 0:00:32]}  Qxb2 {[%clk 0:01:53]} 32. Qd6+ {[%clk 0:00:30]}  Ke8 {[%clk 0:01:54]} 33. Qb8+ {[%clk 0:00:23]}  Kd7 {[%clk 0:01:54]} 34. Qd6+ {[%clk 0:00:23]}  Kc8 {[%clk 0:01:54]} 35. Qf8+ {[%clk 0:00:22]}  Kc7 {[%clk 0:01:54]} 36. Qd6+ {[%clk 0:00:21]}  Kc8 {[%clk 0:01:55]} 37. Qf8+ {[%clk 0:00:20]}  Kc7 {[%clk 0:01:55]} 38. Qd6+ {[%clk 0:00:20]}  Kc8 {[%clk 0:01:55]} 1/2-1/2


[Site "https://www.chess.com"]

[Event "Titled Tuesday Blitz May 16 Late 2023"]
[White "Lima, Kleyton Alcantara"]
[Black "Boor, Carl"]
[WhiteFideId "22718397"]
[BlackFideId "2017008"]
[WhiteElo "2009"]
[BlackElo "2330"]
[Result "0-1"]
[Round "03"]
[TimeControl "180+2"]
[Date "2023.05.16"]
[WhiteClock "0:00:04"]
[BlackClock "0:00:14"]

1. e4 {[%clk 0:02:57]}  e5 {[%clk 0:03:00]} 2. Nf3 {[%clk 0:02:57]}  Nf6 {[%clk 0:02:59]} 3. Nxe5 {[%clk 0:02:56]}  d6 {[%clk 0:02:59]} 4. Nf3 {[%clk 0:02:52]}  Nxe4 {[%clk 0:02:59]} 5. d4 {[%clk 0:02:53]}  d5 {[%clk 0:02:59]} 6. Bd3 {[%clk 0:02:53]}  Bf5 {[%clk 0:02:59]} 7. O-O {[%clk 0:02:52]}  Be7 {[%clk 0:02:59]} 8. Re1 {[%clk 0:02:26]}  O-O {[%clk 0:02:57]} 9. c4 {[%clk 0:02:27]}  Nc6 {[%clk 0:02:54]} 10. Nc3 {[%clk 0:01:47]}  Nxc3 {[%clk 0:02:50]} 11. bxc3 {[%clk 0:01:48]}  Bxd3 {[%clk 0:02:49]} 12. Qxd3 {[%clk 0:01:42]}  dxc4 {[%clk 0:02:49]} 13. Qxc4 {[%clk 0:01:43]}  Bd6 {[%clk 0:02:45]} 14. Rb1 {[%clk 0:01:35]}  Rb8 {[%clk 0:02:41]} 15. d5 {[%clk 0:01:28]}  Na5 {[%clk 0:02:26]} 16. Qd3 {[%clk 0:01:18]}  h6 {[%clk 0:02:15]} 17. Nd4 {[%clk 0:01:15]}  Qf6 {[%clk 0:02:03]} 18. Nf5 {[%clk 0:01:12]}  Rfe8 {[%clk 0:01:57]} 19. Be3 {[%clk 0:01:09]}  b6 {[%clk 0:01:34]} 20. Bd4 {[%clk 0:01:07]}  Be5 {[%clk 0:01:20]} 21. c4 {[%clk 0:00:44]}  Nb7 {[%clk 0:01:09]} 22. Bxe5 {[%clk 0:00:37]}  Rxe5 {[%clk 0:01:08]} 23. Rxe5 {[%clk 0:00:38]}  Qxe5 {[%clk 0:01:08]} 24. h3 {[%clk 0:00:30]}  Re8 {[%clk 0:01:07]} 25. Rd1 {[%clk 0:00:28]}  Nc5 {[%clk 0:01:05]} 26. Qf3 {[%clk 0:00:28]}  Kh7 {[%clk 0:00:46]} 27. d6 {[%clk 0:00:22]}  g6 {[%clk 0:00:33]} 28. d7 {[%clk 0:00:16]}  Rd8 {[%clk 0:00:30]} 29. Nxh6 {[%clk 0:00:13]}  Kxh6 {[%clk 0:00:26]} 30. Qxf7 {[%clk 0:00:13]}  Qe6 {[%clk 0:00:20]} 31. Qf4+ {[%clk 0:00:13]}  Kg7 {[%clk 0:00:20]} 32. Qxc7 {[%clk 0:00:13]}  Rxd7 {[%clk 0:00:20]} 33. Rxd7+ {[%clk 0:00:13]}  Qxd7 {[%clk 0:00:21]} 34. Qe5+ {[%clk 0:00:13]}  Kh7 {[%clk 0:00:20]} 35. g3 {[%clk 0:00:10]}  Qf7 {[%clk 0:00:20]} 36. Qe3 {[%clk 0:00:07]}  Kg7 {[%clk 0:00:19]} 37. h4 {[%clk 0:00:07]}  Qf6 {[%clk 0:00:20]} 38. Kg2 {[%clk 0:00:06]}  Qc6+ {[%clk 0:00:19]} 39. Kh2 {[%clk 0:00:06]}  Ne6 {[%clk 0:00:20]} 40. Qe5+ {[%clk 0:00:06]}  Kf7 {[%clk 0:00:19]} 41. h5 {[%clk 0:00:07]}  gxh5 {[%clk 0:00:19]} 42. Qxh5+ {[%clk 0:00:06]}  Ke7 {[%clk 0:00:20]} 43. Qh7+ {[%clk 0:00:07]}  Kd6 {[%clk 0:00:20]} 44. Qxa7 {[%clk 0:00:08]}  Ng5 {[%clk 0:00:17]} 45. Qb8+ {[%clk 0:00:07]}  Ke6 {[%clk 0:00:17]} 46. Qg8+ {[%clk 0:00:07]}  Kf6 {[%clk 0:00:17]} 47. Qh8+ {[%clk 0:00:07]}  Kg6 {[%clk 0:00:17]} 48. Qg8+ {[%clk 0:00:07]}  Kf6 {[%clk 0:00:17]} 49. Qh8+ {[%clk 0:00:08]}  Kf7 {[%clk 0:00:15]} 50. Qd4 {[%clk 0:00:04]}  Nf3+ {[%clk 0:00:14]} 0-1


[Site "https://www.chess.com"]

[Event "Titled Tuesday Blitz May 16 Late 2023"]
[White "KVAIDAN"]
[Black "Ismagilov, Damir"]
[BlackFideId "34199982"]
[WhiteElo "2386"]
[BlackElo "2143"]
[Result "0-1"]
[Round "03"]
[TimeControl "180+2"]
[Date "2023.05.16"]
[WhiteClock "0:00:50"]
[BlackClock "0:01:02"]

1. f4 {[%clk 0:03:00]}  c5 {[%clk 0:02:56]} 2. Nf3 {[%clk 0:02:59]}  d5 {[%clk 0:02:56]} 3. e3 {[%clk 0:02:58]}  Nf6 {[%clk 0:02:56]} 4. Be2 {[%clk 0:02:56]}  g6 {[%clk 0:02:57]} 5. O-O {[%clk 0:02:57]}  Bg7 {[%clk 0:02:57]} 6. d3 {[%clk 0:02:57]}  O-O {[%clk 0:02:58]} 7. Kh1 {[%clk 0:02:58]}  Nc6 {[%clk 0:02:58]} 8. a4 {[%clk 0:02:57]}  b6 {[%clk 0:02:56]} 9. Ne5 {[%clk 0:02:56]}  Bb7 {[%clk 0:02:52]} 10. Nxc6 {[%clk 0:02:55]}  Bxc6 {[%clk 0:02:52]} 11. Bf3 {[%clk 0:02:55]}  Nd7 {[%clk 0:02:49]} 12. Nc3 {[%clk 0:02:54]}  e6 {[%clk 0:02:43]} 13. Qe1 {[%clk 0:02:50]}  a6 {[%clk 0:02:38]} 14. e4 {[%clk 0:02:49]}  d4 {[%clk 0:02:37]} 15. Ne2 {[%clk 0:02:48]}  b5 {[%clk 0:02:36]} 16. axb5 {[%clk 0:02:46]}  axb5 {[%clk 0:02:37]} 17. Rxa8 {[%clk 0:02:28]}  Qxa8 {[%clk 0:02:38]} 18. Qh4 {[%clk 0:02:27]}  f5 {[%clk 0:02:37]} 19. Ng3 {[%clk 0:02:12]}  Nf6 {[%clk 0:02:30]} 20. Re1 {[%clk 0:02:00]}  Qb7 {[%clk 0:02:29]} 21. c3 {[%clk 0:01:59]}  Ra8 {[%clk 0:02:23]} 22. cxd4 {[%clk 0:01:55]}  cxd4 {[%clk 0:02:24]} 23. Bd2 {[%clk 0:01:51]}  b4 {[%clk 0:02:13]} 24. Kg1 {[%clk 0:01:38]}  Ra2 {[%clk 0:02:04]} 25. Rc1 {[%clk 0:01:24]}  Rxb2 {[%clk 0:01:55]} 26. e5 {[%clk 0:01:08]}  Bxf3 {[%clk 0:01:47]} 27. exf6 {[%clk 0:01:06]}  Rxd2 {[%clk 0:01:46]} 28. fxg7 {[%clk 0:01:00]}  Rxg2+ {[%clk 0:01:45]} 29. Kf1 {[%clk 0:00:59]}  Be2+ {[%clk 0:01:04]} 30. Ke1 {[%clk 0:00:55]}  Rg1+ {[%clk 0:01:04]} 31. Kxe2 {[%clk 0:00:50]}  Qg2# {[%clk 0:01:02]} 0-1


[Site "https://www.chess.com"]

[Event "Titled Tuesday Blitz May 16 Late 2023"]
[White "Colbow, Collin"]
[Black "Vaglio Munoz, Jaime"]
[WhiteFideId "16201132"]
[BlackFideId "6500145"]
[WhiteElo "2351"]
[BlackElo "2199"]
[Result "0-1"]
[Round "03"]
[TimeControl "180+2"]
[Date "2023.05.16"]
[WhiteClock "0:00:12"]
[BlackClock "0:00:32"]

1. Nf3 {[%clk 0:02:32]}  b5 {[%clk 0:02:57]} 2. g3 {[%clk 0:02:33]}  Bb7 {[%clk 0:02:56]} 3. Bg2 {[%clk 0:02:34]}  a6 {[%clk 0:02:55]} 4. O-O {[%clk 0:02:35]}  g6 {[%clk 0:02:55]} 5. d3 {[%clk 0:02:35]}  Bg7 {[%clk 0:02:55]} 6. e4 {[%clk 0:02:36]}  d6 {[%clk 0:02:54]} 7. c3 {[%clk 0:02:36]}  Nd7 {[%clk 0:02:54]} 8. Be3 {[%clk 0:02:37]}  Ngf6 {[%clk 0:02:53]} 9. Re1 {[%clk 0:02:37]}  c5 {[%clk 0:02:54]} 10. h3 {[%clk 0:02:37]}  O-O {[%clk 0:02:53]} 11. Nbd2 {[%clk 0:02:36]}  e5 {[%clk 0:02:52]} 12. Nf1 {[%clk 0:02:36]}  h6 {[%clk 0:02:52]} 13. Qd2 {[%clk 0:02:34]}  Kh7 {[%clk 0:02:51]} 14. g4 {[%clk 0:02:33]}  d5 {[%clk 0:02:46]} 15. g5 {[%clk 0:02:32]}  hxg5 {[%clk 0:02:40]} 16. Bxg5 {[%clk 0:02:11]}  dxe4 {[%clk 0:02:38]} 17. dxe4 {[%clk 0:02:12]}  Qc7 {[%clk 0:02:31]} 18. Ng3 {[%clk 0:02:09]}  c4 {[%clk 0:02:23]} 19. Rad1 {[%clk 0:02:05]}  Nc5 {[%clk 0:02:20]} 20. Nh2 {[%clk 0:01:32]}  Rad8 {[%clk 0:02:11]} 21. Qe3 {[%clk 0:01:30]}  Rxd1 {[%clk 0:02:09]} 22. Rxd1 {[%clk 0:01:31]}  Nd3 {[%clk 0:01:54]} 23. Rd2 {[%clk 0:01:11]}  Re8 {[%clk 0:01:49]} 24. h4 {[%clk 0:01:09]}  Nf4 {[%clk 0:01:48]} 25. Bf3 {[%clk 0:01:05]}  Nh3+ {[%clk 0:01:39]} 26. Kg2 {[%clk 0:01:03]}  Nxg5 {[%clk 0:01:38]} 27. hxg5 {[%clk 0:01:03]}  Nd7 {[%clk 0:01:31]} 28. Ng4 {[%clk 0:01:02]}  Nc5 {[%clk 0:01:30]} 29. Rd1 {[%clk 0:01:02]}  Kg8 {[%clk 0:01:29]} 30. Nf6+ {[%clk 0:00:52]}  Kf8 {[%clk 0:01:26]} 31. Nxe8 {[%clk 0:00:50]}  Kxe8 {[%clk 0:01:27]} 32. Be2 {[%clk 0:00:33]}  Bf8 {[%clk 0:01:26]} 33. f3 {[%clk 0:00:33]}  Ne6 {[%clk 0:01:25]} 34. Qd2 {[%clk 0:00:26]}  Be7 {[%clk 0:01:17]} 35. Kh2 {[%clk 0:00:15]}  Nxg5 {[%clk 0:01:14]} 36. a4 {[%clk 0:00:15]}  Qc8 {[%clk 0:01:08]} 37. Nf1 {[%clk 0:00:05]}  Qh3+ {[%clk 0:01:06]} 38. Kg1 {[%clk 0:00:06]}  Bc8 {[%clk 0:00:58]} 39. axb5 {[%clk 0:00:05]}  Ne6 {[%clk 0:00:52]} 40. Qe3 {[%clk 0:00:05]}  Nf4 {[%clk 0:00:51]} 41. Qf2 {[%clk 0:00:06]}  axb5 {[%clk 0:00:47]} 42. Rd2 {[%clk 0:00:03]}  Be6 {[%clk 0:00:47]} 43. Ne3 {[%clk 0:00:01]}  Qh5 {[%clk 0:00:44]} 44. Bf1 {[%clk 0:00:01]}  Qg5+ {[%clk 0:00:43]} 45. Ng2 {[%clk 0:00:01]}  Nh3+ {[%clk 0:00:43]} 46. Kh1 {[%clk 0:00:02]}  Nxf2+ {[%clk 0:00:42]} 47. Rxf2 {[%clk 0:00:03]}  Bc5 {[%clk 0:00:41]} 48. Re2 {[%clk 0:00:03]}  Qh6+ {[%clk 0:00:41]} 49. Nh4 {[%clk 0:00:02]}  Qxh4+ {[%clk 0:00:41]} 50. Kg2 {[%clk 0:00:03]}  Qg5+ {[%clk 0:00:39]} 51. Kh2 {[%clk 0:00:03]}  Qf4+ {[%clk 0:00:39]} 52. Kg2 {[%clk 0:00:03]}  g5 {[%clk 0:00:39]} 53. Re1 {[%clk 0:00:02]}  g4 {[%clk 0:00:39]} 54. Be2 {[%clk 0:00:03]}  gxf3+ {[%clk 0:00:37]} 55. Bxf3 {[%clk 0:00:04]}  Bh3+ {[%clk 0:00:37]} 56. Kxh3 {[%clk 0:00:03]}  Qxf3+ {[%clk 0:00:38]} 57. Kh4 {[%clk 0:00:04]}  Qf2+ {[%clk 0:00:38]} 58. Kg5 {[%clk 0:00:05]}  Qxe1 {[%clk 0:00:38]} 59. b4 {[%clk 0:00:06]}  Qxe4 {[%clk 0:00:37]} 60. bxc5 {[%clk 0:00:05]}  Qd5 {[%clk 0:00:37]} 61. c6 {[%clk 0:00:06]}  Qxc6 {[%clk 0:00:37]} 62. Kf5 {[%clk 0:00:07]}  e4 {[%clk 0:00:35]} 63. Kf4 {[%clk 0:00:08]}  b4 {[%clk 0:00:34]} 64. Ke3 {[%clk 0:00:09]}  b3 {[%clk 0:00:34]} 65. Kf4 {[%clk 0:00:10]}  b2 {[%clk 0:00:34]} 66. Ke5 {[%clk 0:00:11]}  b1=Q {[%clk 0:00:32]} 67. Kd4 {[%clk 0:00:11]}  e3 {[%clk 0:00:32]} 68. Ke5 {[%clk 0:00:12]}  e2 {[%clk 0:00:32]} 69. Kd4 {[%clk 0:00:12]}  Qbe4# {[%clk 0:00:32]} 0-1


[Site "https://www.chess.com"]

[Event "Titled Tuesday Blitz May 16 Late 2023"]
[White "Szente Varga, Fruzsina"]
[Black "koncheto"]
[WhiteFideId "712264"]
[WhiteElo "1994"]
[BlackElo "2566"]
[Result "0-1"]
[Round "03"]
[TimeControl "180+2"]
[Date "2023.05.16"]
[WhiteClock "0:00:04"]
[BlackClock "0:01:32"]

1. e4 {[%clk 0:03:00]}  d5 {[%clk 0:03:00]} 2. exd5 {[%clk 0:03:00]}  Qxd5 {[%clk 0:03:01]} 3. Nc3 {[%clk 0:03:01]}  Qa5 {[%clk 0:03:02]} 4. d4 {[%clk 0:03:01]}  c6 {[%clk 0:03:02]} 5. Bc4 {[%clk 0:03:01]}  Nf6 {[%clk 0:03:02]} 6. Bd2 {[%clk 0:02:55]}  Qc7 {[%clk 0:02:57]} 7. Nf3 {[%clk 0:02:53]}  Bf5 {[%clk 0:02:55]} 8. h3 {[%clk 0:02:47]}  e6 {[%clk 0:02:55]} 9. g4 {[%clk 0:02:34]}  Bg6 {[%clk 0:02:55]} 10. Ne5 {[%clk 0:02:34]}  Bd6 {[%clk 0:02:51]} 11. Nxg6 {[%clk 0:02:31]}  hxg6 {[%clk 0:02:50]} 12. Qe2 {[%clk 0:02:32]}  Nbd7 {[%clk 0:02:50]} 13. g5 {[%clk 0:02:00]}  Nh5 {[%clk 0:02:41]} 14. Bxe6 {[%clk 0:01:12]}  fxe6 {[%clk 0:02:40]} 15. Qxe6+ {[%clk 0:01:12]}  Kd8 {[%clk 0:02:26]} 16. O-O-O {[%clk 0:01:08]}  Bf4 {[%clk 0:02:23]} 17. Qxg6 {[%clk 0:00:58]}  Qd6 {[%clk 0:02:19]} 18. Qd3 {[%clk 0:00:44]}  Kc7 {[%clk 0:02:13]} 19. d5 {[%clk 0:00:43]}  Rhf8 {[%clk 0:02:06]} 20. Kb1 {[%clk 0:00:40]}  Rae8 {[%clk 0:02:05]} 21. Bxf4 {[%clk 0:00:24]}  Nxf4 {[%clk 0:02:04]} 22. Qc4 {[%clk 0:00:24]}  Qc5 {[%clk 0:01:57]} 23. Qa4 {[%clk 0:00:24]}  Nb6 {[%clk 0:01:49]} 24. Qb3 {[%clk 0:00:20]}  Nbxd5 {[%clk 0:01:47]} 25. Nxd5+ {[%clk 0:00:19]}  Nxd5 {[%clk 0:01:47]} 26. c4 {[%clk 0:00:17]}  Nb6 {[%clk 0:01:38]} 27. Qg3+ {[%clk 0:00:17]}  Qe5 {[%clk 0:01:38]} 28. Qa3 {[%clk 0:00:14]}  Rxf2 {[%clk 0:01:37]} 29. c5 {[%clk 0:00:04]}  Nc4 {[%clk 0:01:32]} 0-1


[Site "https://www.chess.com"]

[Event "Titled Tuesday Blitz May 16 Late 2023"]
[White "Romkachess"]
[Black "Silvestre, Christian"]
[BlackFideId "30956269"]
[WhiteElo "2558"]
[BlackElo "2323"]
[Result "1/2-1/2"]
[Round "03"]
[TimeControl "180+2"]
[Date "2023.05.16"]
[WhiteClock "0:00:13"]
[BlackClock "0:00:12"]

1. e4 {[%clk 0:03:00]}  e6 {[%clk 0:02:54]} 2. d4 {[%clk 0:03:00]}  c5 {[%clk 0:02:54]} 3. Nf3 {[%clk 0:02:59]}  cxd4 {[%clk 0:02:53]} 4. Nxd4 {[%clk 0:03:00]}  a6 {[%clk 0:02:53]} 5. Be3 {[%clk 0:02:58]}  Nf6 {[%clk 0:02:52]} 6. Nd2 {[%clk 0:02:57]}  d5 {[%clk 0:02:49]} 7. e5 {[%clk 0:02:56]}  Nfd7 {[%clk 0:02:49]} 8. f4 {[%clk 0:02:56]}  Nc6 {[%clk 0:02:49]} 9. c3 {[%clk 0:02:56]}  Nxd4 {[%clk 0:02:42]} 10. Bxd4 {[%clk 0:02:56]}  b5 {[%clk 0:02:40]} 11. Bd3 {[%clk 0:02:55]}  Bb7 {[%clk 0:02:40]} 12. O-O {[%clk 0:02:55]}  Bc5 {[%clk 0:02:38]} 13. f5 {[%clk 0:02:54]}  Bxd4+ {[%clk 0:02:21]} 14. cxd4 {[%clk 0:02:54]}  Qb6 {[%clk 0:02:17]} 15. Nf3 {[%clk 0:02:54]}  Nxe5 {[%clk 0:02:07]} 16. Nxe5 {[%clk 0:02:54]}  Qxd4+ {[%clk 0:02:03]} 17. Kh1 {[%clk 0:02:54]}  Qxe5 {[%clk 0:02:03]} 18. fxe6 {[%clk 0:02:28]}  fxe6 {[%clk 0:02:01]} 19. Rc1 {[%clk 0:02:13]}  Rc8 {[%clk 0:01:57]} 20. Rxc8+ {[%clk 0:01:55]}  Bxc8 {[%clk 0:01:58]} 21. Qf3 {[%clk 0:01:49]}  Bd7 {[%clk 0:01:19]} 22. Qf2 {[%clk 0:01:14]}  Kd8 {[%clk 0:00:45]} 23. Re1 {[%clk 0:01:08]}  Qd6 {[%clk 0:00:37]} 24. Qh4+ {[%clk 0:00:46]}  Qe7 {[%clk 0:00:34]} 25. Qd4 {[%clk 0:00:46]}  Qd6 {[%clk 0:00:15]} 26. Qxg7 {[%clk 0:00:39]}  Rf8 {[%clk 0:00:16]} 27. Qd4 {[%clk 0:00:28]}  Rf4 {[%clk 0:00:11]} 28. Qa7 {[%clk 0:00:23]}  Qc7 {[%clk 0:00:08]} 29. Qxa6 {[%clk 0:00:20]}  Rh4 {[%clk 0:00:08]} 30. h3 {[%clk 0:00:19]}  Qg3 {[%clk 0:00:07]} 31. Qa5+ {[%clk 0:00:14]}  Ke8 {[%clk 0:00:06]} 32. Bf1 {[%clk 0:00:15]}  e5 {[%clk 0:00:04]} 33. Qc3 {[%clk 0:00:14]}  Qxc3 {[%clk 0:00:03]} 34. bxc3 {[%clk 0:00:15]}  b4 {[%clk 0:00:03]} 35. Rxe5+ {[%clk 0:00:14]}  Kd8 {[%clk 0:00:02]} 36. cxb4 {[%clk 0:00:15]}  Rxb4 {[%clk 0:00:02]} 37. Rxd5 {[%clk 0:00:15]}  Rb2 {[%clk 0:00:03]} 38. a4 {[%clk 0:00:13]}  Rb1 {[%clk 0:00:04]} 39. Kg1 {[%clk 0:00:12]}  Ke7 {[%clk 0:00:05]} 40. Kf2 {[%clk 0:00:12]}  Bxa4 {[%clk 0:00:05]} 41. Bd3 {[%clk 0:00:12]}  Bc6 {[%clk 0:00:05]} 42. Re5+ {[%clk 0:00:11]}  Kd6 {[%clk 0:00:05]} 43. Bxb1 {[%clk 0:00:10]}  Kxe5 {[%clk 0:00:05]} 44. Bxh7 {[%clk 0:00:11]}  Kf4 {[%clk 0:00:05]} 45. g3+ {[%clk 0:00:11]}  Kg5 {[%clk 0:00:06]} 46. h4+ {[%clk 0:00:11]}  Kh6 {[%clk 0:00:07]} 47. Bc2 {[%clk 0:00:11]}  Bd7 {[%clk 0:00:08]} 48. Ke3 {[%clk 0:00:11]}  Bh3 {[%clk 0:00:08]} 49. Kf4 {[%clk 0:00:12]}  Be6 {[%clk 0:00:07]} 50. g4 {[%clk 0:00:13]}  Bxg4 {[%clk 0:00:07]} 51. Kxg4 {[%clk 0:00:10]}  Kg7 {[%clk 0:00:08]} 52. Kg5 {[%clk 0:00:11]}  Kh8 {[%clk 0:00:09]} 53. h5 {[%clk 0:00:12]}  Kg8 {[%clk 0:00:09]} 54. h6 {[%clk 0:00:12]}  Kh8 {[%clk 0:00:10]} 55. Kg6 {[%clk 0:00:13]}  Kg8 {[%clk 0:00:11]} 56. h7+ {[%clk 0:00:12]}  Kh8 {[%clk 0:00:12]} 57. Kh6 {[%clk 0:00:13]} 1/2-1/2


[Site "https://www.chess.com"]

[Event "Titled Tuesday Blitz May 16 Late 2023"]
[White "Shtivelband, Richard"]
[Black "Roberson, Peter T"]
[WhiteFideId "2017342"]
[BlackFideId "412384"]
[WhiteElo "2309"]
[BlackElo "2346"]
[Result "0-1"]
[Round "03"]
[TimeControl "180+2"]
[Date "2023.05.16"]
[WhiteClock "0:00:00"]
[BlackClock "0:00:03"]

1. e4 {[%clk 0:02:54]}  e5 {[%clk 0:02:58]} 2. Nf3 {[%clk 0:02:54]}  Nc6 {[%clk 0:02:58]} 3. Bb5 {[%clk 0:02:53]}  Nf6 {[%clk 0:02:58]} 4. Nc3 {[%clk 0:02:50]}  Bd6 {[%clk 0:02:56]} 5. d3 {[%clk 0:02:49]}  O-O {[%clk 0:02:56]} 6. h3 {[%clk 0:02:47]}  Re8 {[%clk 0:02:55]} 7. O-O {[%clk 0:02:45]}  h6 {[%clk 0:02:54]} 8. Ne2 {[%clk 0:02:45]}  Bf8 {[%clk 0:02:54]} 9. Ng3 {[%clk 0:02:45]}  Ne7 {[%clk 0:02:54]} 10. c3 {[%clk 0:02:43]}  c6 {[%clk 0:02:54]} 11. Ba4 {[%clk 0:02:43]}  Ng6 {[%clk 0:02:54]} 12. Re1 {[%clk 0:02:41]}  d5 {[%clk 0:02:50]} 13. exd5 {[%clk 0:02:38]}  Qxd5 {[%clk 0:02:50]} 14. d4 {[%clk 0:02:35]}  e4 {[%clk 0:02:34]} 15. Bb3 {[%clk 0:02:32]}  Qd6 {[%clk 0:02:28]} 16. Nh2 {[%clk 0:02:31]}  Bd7 {[%clk 0:02:10]} 17. Ng4 {[%clk 0:02:21]}  Bxg4 {[%clk 0:01:30]} 18. hxg4 {[%clk 0:02:20]}  Nf4 {[%clk 0:01:31]} 19. Nf5 {[%clk 0:02:17]}  Qc7 {[%clk 0:01:32]} 20. g3 {[%clk 0:01:51]}  Nd3 {[%clk 0:01:24]} 21. Re3 {[%clk 0:01:48]}  Nd5 {[%clk 0:01:12]} 22. Bxd5 {[%clk 0:01:42]}  cxd5 {[%clk 0:01:13]} 23. Kg2 {[%clk 0:01:41]}  g6 {[%clk 0:01:08]} 24. Nh4 {[%clk 0:01:37]}  Be7 {[%clk 0:01:07]} 25. Rxd3 {[%clk 0:01:23]}  exd3 {[%clk 0:01:05]} 26. Bxh6 {[%clk 0:01:22]}  Qc4 {[%clk 0:00:49]} 27. Qf3 {[%clk 0:01:00]}  Rac8 {[%clk 0:00:22]} 28. Bd2 {[%clk 0:00:59]}  Bxh4 {[%clk 0:00:19]} 29. gxh4 {[%clk 0:00:59]}  Re4 {[%clk 0:00:20]} 30. Rh1 {[%clk 0:00:53]}  Qc6 {[%clk 0:00:14]} 31. h5 {[%clk 0:00:52]}  Qe6 {[%clk 0:00:14]} 32. Rh4 {[%clk 0:00:44]}  gxh5 {[%clk 0:00:09]} 33. Bf4 {[%clk 0:00:41]}  d2 {[%clk 0:00:06]} 34. gxh5 {[%clk 0:00:40]}  Kf8 {[%clk 0:00:04]} 35. h6 {[%clk 0:00:33]}  Ke7 {[%clk 0:00:03]} 36. h7 {[%clk 0:00:32]}  Rh8 {[%clk 0:00:03]} 37. Qd3 {[%clk 0:00:17]}  Qg6+ {[%clk 0:00:02]} 38. Kh2 {[%clk 0:00:00]}  Rxf4 {[%clk 0:00:03]} 0-1


[Site "https://www.chess.com"]